bitfinex-derivatives/quotes_BTCF0:USTF0_20250911
["timestamp","ask_amount","ask_price","bid_price","bid_amount"]
[1757612963517,0.97014323,114580.0,114570.0,0.90764781]
[1757612964418,0.79736,114580.0,114570.0,0.90764781]
[1757612964619,0.97014323,114580.0,114570.0,0.90764781]
[1757612964810,0.79736,114580.0,114570.0,1.01731051]
[1757612965006,0.79736,114580.0,114570.0,1.29965593]
[1757612965718,0.79736,114580.0,114570.0,1.47243916]
[1757612966312,0.79736,114580.0,114570.0,1.29965593]
[1757612967922,0.79636,114580.0,114570.0,1.29965593]
[1757612968315,0.79536,114580.0,114570.0,1.29965593]
[1757612971514,0.79536,114580.0,114570.0,1.1268727]
[1757612971715,0.96814323,114580.0,114570.0,1.1268727]
[1757612971912,0.79536,114580.0,114570.0,1.29965593]
[1757612972122,0.96814323,114580.0,114570.0,1.29965593]
[1757612972323,0.96814323,114580.0,114570.0,0.93885593]
[1757612973522,0.96814323,114580.0,114570.0,1.01726712]
[1757612973711,0.96814323,114580.0,114570.0,0.90760442]
[1757612974123,0.96814323,114580.0,114570.0,0.73482119]
[1757612974311,0.96814323,114580.0,114570.0,0.90760442]
[1757612975228,1.50172646,114580.0,114570.0,0.73482119]
[1757612975528,1.75172646,114580.0,114570.0,0.01354]
[1757612975922,1.40616,114580.0,114570.0,0.01354]
[1757612976227,1.75172646,114580.0,114560.0,0.03464]
[1757612976421,0.53358323,114570.0,114560.0,0.03464]
[1757612976821,0.54229094,114570.0,114560.0,0.03464]
[1757612977817,0.54229094,114570.0,114560.0,0.11305119]
[1757612978020,1.33142323,114570.0,114560.0,0.11305119]
[1757612978620,1.33142323,114570.0,114560.0,0.11405119]
[1757612978826,1.33142323,114570.0,114560.0,0.28683442]
[1757612979424,1.15864,114570.0,114560.0,0.28683442]
[1757612979725,1.33142323,114570.0,114560.0,0.28683442]
[1757612980321,1.33142323,114570.0,114560.0,0.11405119]
[1757612980626,1.34015516,114570.0,114560.0,0.11405119]
[1757612981526,0.54231516,114570.0,114560.0,0.11405119]
[1757612981731,1.34095516,114570.0,114560.0,0.11405119]
[1757612982222,0.3608,114570.0,114560.0,0.11405119]
[1757612982425,1.1594,114570.0,114560.0,0.28683442]
[1757612982626,1.33218323,114570.0,114560.0,0.28683442]
[1757612984327,0.53358323,114570.0,114560.0,0.28683442]
[1757612984528,1.33314323,114570.0,114560.0,0.28683442]
[1757612984725,1.16036,114570.0,114560.0,0.28683442]
[1757612985127,1.33314323,114570.0,114560.0,0.28683442]
[1757612985328,1.33314323,114570.0,114560.0,0.20842323]
[1757612986130,1.16036,114570.0,114560.0,0.20842323]
[1757612986327,1.33314323,114570.0,114560.0,0.20842323]
[1757612986928,0.53358323,114570.0,114560.0,0.20842323]
[1757612987126,1.33270323,114570.0,114560.0,0.20842323]
[1757612987432,1.34139835,114570.0,114560.0,0.20842323]
[1757612988332,1.34139835,114570.0,114560.0,0.03564]
[1757612988627,1.34139835,114570.0,114560.0,0.20842323]
[1757612989024,1.34139835,114570.0,114560.0,0.03564]
[1757612991230,1.34095835,114570.0,114560.0,0.03564]
[1757612992138,1.34095835,114570.0,114560.0,0.29984]
[1757612993735,1.34071835,114570.0,114560.0,0.29984]
[1757612994536,0.54227835,114570.0,114560.0,0.29984]
[1757612994730,1.34059835,114570.0,114560.0,0.29984]
[1757612994926,1.34059835,114570.0,114560.0,0.27874]
[1757612995128,1.34059835,114570.0,114560.0,0.30081]
[1757612996833,1.33246323,114570.0,114560.0,0.47359323]
[1757612997133,1.33246323,114570.0,114560.0,0.55187123]
[1757612998537,1.33238323,114570.0,114560.0,0.55187123]
[1757612998740,1.33238323,114570.0,114560.0,0.47359323]
[1757612999940,0.3608,114570.0,114560.0,0.47359323]
[1757613000148,0.3608,114580.0,114570.0,0.03507]
[1757613000438,1.50528646,114580.0,114570.0,0.013]
[1757613001340,1.51391581,114580.0,114570.0,0.013]
[1757613001838,1.51391581,114580.0,114570.0,0.03507]
[1757613002033,1.51391581,114580.0,114570.0,0.013]
[1757613002234,0.71499581,114580.0,114570.0,0.013]
[1757613002432,1.51395581,114580.0,114570.0,0.013]
[1757613003041,1.51395581,114580.0,114570.0,0.03507]
[1757613003538,1.51395581,114580.0,114570.0,0.013]
[1757613003941,1.51395581,114580.0,114570.0,0.2772]
[1757613004337,0.71499581,114580.0,114570.0,0.2772]
[1757613004543,1.51387581,114580.0,114570.0,0.29927]
[1757613004744,0.71499581,114580.0,114570.0,0.29927]
[1757613004936,1.51383581,114580.0,114570.0,0.29927]
[1757613007144,1.51383581,114580.0,114570.0,0.2772]
[1757613007443,1.16826935,114580.0,114570.0,0.2772]
[1757613007642,1.76383581,114580.0,114570.0,0.2772]
[1757613009443,1.41826935,114580.0,114570.0,0.2772]
[1757613009630,0.96499581,114580.0,114570.0,0.2772]
[1757613009834,0.61942935,114580.0,114570.0,0.03507]
[1757613010040,1.41802935,114580.0,114570.0,0.03507]
[1757613010239,1.76359581,114580.0,114570.0,0.03507]
[1757613013144,3.52399581,114580.0,114570.0,0.03507]
[1757613013338,2.72539581,114580.0,114570.0,0.03507]
[1757613013539,3.52383581,114580.0,114570.0,0.03507]
[1757613014344,3.17826935,114580.0,114570.0,0.03507]
[1757613014643,3.52383581,114580.0,114570.0,0.03507]
[1757613014844,2.72539581,114580.0,114570.0,0.03507]
[1757613015045,3.52367581,114580.0,114570.0,0.03507]
[1757613015445,3.52367581,114580.0,114570.0,0.113348]
[1757613018340,3.40855185,114580.0,114570.0,0.113348]
[1757613019645,3.17810935,114580.0,114570.0,0.091278]
[1757613019849,3.40855185,114580.0,114570.0,0.091278]
[1757613020045,3.40855185,114580.0,114570.0,0.03507]
[1757613020854,3.40795185,114580.0,114570.0,0.03507]
[1757613021046,2.61027185,114580.0,114570.0,0.03507]
[1757613021246,3.40791185,114580.0,114570.0,0.03507]
[1757613023852,3.40791185,114580.0,114570.0,0.013]
[1757613025253,3.40791185,114580.0,114570.0,0.091278]
[1757613026556,3.40791185,114580.0,114570.0,0.114308]
[1757613026853,3.40779185,114580.0,114570.0,0.114308]
[1757613027255,3.17734935,114580.0,114570.0,0.114308]
[1757613027455,3.40779185,114580.0,114570.0,0.091278]
[1757613027658,3.40779185,114580.0,114570.0,0.114308]
[1757613028551,3.40779185,114580.0,114570.0,0.091278]
[1757613029048,2.61027185,114580.0,114570.0,0.114308]
[1757613029244,3.40799185,114580.0,114570.0,0.114308]
[1757613029658,2.61027185,114580.0,114570.0,0.114308]
[1757613029958,3.40799185,114580.0,114570.0,0.114308]
[1757613031160,3.17754935,114580.0,114570.0,0.114308]
[1757613031351,3.40799185,114580.0,114570.0,0.114308]
[1757613032157,3.40799185,114580.0,114570.0,0.091278]
[1757613032457,3.40799185,114580.0,114570.0,0.114308]
[1757613033550,3.40783185,114580.0,114570.0,0.114308]
[1757613034848,3.40783185,114580.0,114570.0,0.091278]
[1757613035144,3.40783185,114580.0,114570.0,0.114308]
[1757613038048,2.61027185,114580.0,114570.0,0.114308]
[1757613038359,3.40731185,114580.0,114570.0,0.114308]
[1757613039263,3.15731185,114580.0,114570.0,0.114308]
[1757613040159,2.36027185,114580.0,114570.0,0.114308]
[1757613040364,3.15731185,114580.0,114570.0,0.114308]
[1757613041062,2.92686935,114580.0,114570.0,0.114308]
[1757613041262,3.15731185,114580.0,114570.0,0.114308]
[1757613043167,3.15731185,114580.0,114570.0,0.091278]
[1757613043367,3.15731185,114580.0,114570.0,0.114308]
[1757613044766,2.1212,114580.0,114570.0,0.114308]
[1757613045067,3.03294125,114580.0,114570.0,0.114308]
[1757613045365,3.03294125,114580.0,114570.0,0.03603]
[1757613046367,3.0418329,114580.0,114570.0,0.03603]
[1757613046667,2.92661165,114580.0,114570.0,0.03603]
[1757613046869,3.0418329,114580.0,114570.0,0.03603]
[1757613048260,3.15705415,114580.0,114570.0,0.013]
[1757613051773,2.36053415,114580.0,114570.0,0.013]
[1757613051974,3.15673415,114580.0,114570.0,0.03603]
[1757613052674,2.92629165,114580.0,114570.0,0.03603]
[1757613052973,3.15673415,114580.0,114570.0,0.03603]
[1757613054970,3.15673415,114580.0,114570.0,0.013]
[1757613055768,3.15673415,114580.0,114570.0,0.03454]
[1757613056284,3.15673415,114580.0,114570.0,0.013]
[1757613057181,2.13009165,114580.0,114570.0,0.03454]
[1757613057362,3.0417929,114580.0,114570.0,0.03454]
[1757613057566,3.15701415,114580.0,114570.0,0.112818]
[1757613059573,3.15701415,114580.0,114570.0,0.03454]
[1757613060175,3.15701415,114580.0,114570.0,0.013]
[1757613065776,3.15705415,114580.0,114560.0,0.091818]
[1757613065978,0.47602125,114570.0,114560.0,0.11218352]
[1757613066180,0.47602125,114570.0,114560.0,0.03390552]
[1757613066483,0.47602125,114570.0,114560.0,0.05544552]
[1757613067082,1.27730125,114570.0,114560.0,0.05544552]
[1757613067385,1.27730125,114570.0,114560.0,0.05644552]
[1757613067784,1.27730125,114570.0,114560.0,0.13472352]
[1757613068080,1.27730125,114570.0,114560.0,0.05644552]
[1757613068684,1.27714125,114570.0,114560.0,0.05644552]
[1757613069290,1.27706125,114570.0,114560.0,0.05644552]
[1757613070484,0.47602125,114570.0,114560.0,0.05644552]
[1757613070696,1.27702125,114570.0,114560.0,0.05644552]
[1757613071688,0.47602125,114570.0,114560.0,0.05644552]
[1757613071883,1.27670125,114570.0,114560.0,0.05644552]
[1757613072285,0.47602125,114570.0,114560.0,0.05644552]
[1757613072587,0.91610125,114570.0,114560.0,0.05644552]
[1757613073094,0.91606125,114570.0,114560.0,0.17166677]
[1757613074289,0.91602125,114570.0,114560.0,0.17166677]
[1757613074490,0.91602125,114570.0,114560.0,0.24994477]
[1757613075182,0.91602125,114570.0,114560.0,0.17166677]
[1757613076992,1.27682125,114570.0,114560.0,0.17166677]
[1757613078595,1.27682125,114570.0,114560.0,0.05644552]
[1757613078896,1.27682125,114570.0,114560.0,0.17166677]
[1757613079391,0.91602125,114570.0,114560.0,0.17166677]
[1757613079598,0.91602125,114570.0,114560.0,0.24994477]
[1757613080088,0.91602125,114570.0,114560.0,0.13472352]
[1757613080389,0.97363432,114570.0,114560.0,0.30755784]
[1757613080597,1.33443432,114570.0,114560.0,0.30755784]
[1757613081492,1.33443432,114570.0,114560.0,0.05644552]
[1757613081689,1.33443432,114570.0,114560.0,0.22927984]
[1757613083391,1.33443432,114570.0,114560.0,0.05644552]
[1757613083891,1.50726864,114570.0,114560.0,0.03490552]
[1757613084191,1.75726864,114570.0,114560.0,0.079278]
[1757613084397,1.75726864,114570.0,114560.0,0.001]
[1757613085699,1.93010296,114570.0,114560.0,0.001]
[1757613086197,1.93010296,114570.0,114550.0,0.03406883]
[1757613086198,1.93110296,114570.0,114550.0,0.03406883]
[1757613086396,0.87930296,114560.0,114550.0,0.03406883]
[1757613086697,0.89729304,114560.0,114550.0,0.03406883]
[1757613087399,0.72445872,114560.0,114550.0,0.03406883]
[1757613093202,0.72445872,114560.0,114550.0,0.01354]
[1757613094901,0.89729304,114560.0,114550.0,0.01354]
[1757613095103,0.72445872,114560.0,114550.0,0.01354]
[1757613096799,0.72445872,114560.0,114550.0,0.03572]
[1757613097000,1.52409872,114560.0,114550.0,0.05585784]
[1757613097200,0.72445872,114560.0,114550.0,0.05585784]
[1757613097502,1.52481872,114560.0,114550.0,0.05585784]
[1757613097812,0.72445872,114560.0,114550.0,0.05585784]
[1757613098106,1.52473872,114560.0,114550.0,0.05585784]
[1757613098501,1.3518644,114560.0,114550.0,0.22869216]
[1757613098702,0.5516244,114560.0,114550.0,0.22869216]
[1757613098911,1.3519044,114560.0,114550.0,0.05585784]
[1757613099107,1.52473872,114560.0,114550.0,0.05585784]
[1757613099308,1.52473872,114560.0,114550.0,0.22869216]
[1757613099620,1.52473872,114560.0,114550.0,0.05585784]
[1757613099819,1.52473872,114560.0,114550.0,0.22869216]
[1757613100121,1.52473872,114560.0,114550.0,0.05585784]
[1757613101520,1.52465872,114560.0,114550.0,0.05585784]
[1757613104121,0.72445872,114560.0,114550.0,0.05585784]
[1757613104315,1.52445872,114560.0,114550.0,0.05585784]
[1757613105618,0.72445872,114560.0,114550.0,0.05585784]
[1757613105824,1.52437872,114560.0,114550.0,0.05585784]
[1757613106027,1.52437872,114560.0,114550.0,0.22869216]
[1757613106223,0.37879008,114560.0,114550.0,0.47869216]
[1757613106413,0.01799008,114560.0,114550.0,0.83949216]
[1757613106618,0.81823008,114560.0,114550.0,0.91777016]
[1757613107927,0.01799008,114560.0,114550.0,0.91777016]
[1757613108136,0.81807008,114560.0,114550.0,0.91777016]
[1757613108318,0.81807008,114560.0,114550.0,0.83949216]
[1757613108519,0.81807008,114560.0,114550.0,0.91778368]
[1757613109127,0.81807008,114560.0,114550.0,0.83949216]
[1757613110923,0.01799008,114560.0,114550.0,0.83949216]
[1757613111120,0.01799008,114560.0,114550.0,1.01232648]
[1757613111427,0.81787008,114560.0,114550.0,1.7178917]
[1757613111630,0.81783008,114560.0,114550.0,1.74918939]
[1757613113830,0.81783008,114560.0,114550.0,1.66191569]
[1757613114129,0.81783008,114560.0,114550.0,1.48908137]
[1757613114630,0.01799008,114560.0,114550.0,1.48908137]
[1757613114930,0.81755008,114560.0,114550.0,1.48908137]
[1757613115434,0.81755008,114560.0,114550.0,1.56734838]
[1757613115630,0.81755008,114560.0,114550.0,1.37949216]
[1757613116332,0.81755008,114560.0,114550.0,1.45774939]
[1757613119134,0.79956,114560.0,114550.0,1.45774939]
[1757613119327,0.81735968,114560.0,114550.0,1.37949216]
[1757613119724,0.81735968,114560.0,114550.0,1.75328137]
[1757613120526,0.81705014,114560.0,114550.0,1.75328137]
[1757613120726,0.79956,114560.0,114550.0,1.75328137]
[1757613121637,0.81705014,114560.0,114550.0,1.75328137]
[1757613122537,0.79944,114560.0,114550.0,1.92611569]
[1757613122841,0.79944,114560.0,114550.0,2.01338929]
[1757613124242,0.81688881,114560.0,114550.0,2.01338929]
[1757613124433,0.81688881,114560.0,114550.0,1.92611569]
[1757613124634,0.79944,114560.0,114550.0,1.92611569]
[1757613125134,0.79944,114560.0,114550.0,2.00440051]
[1757613125442,0.79944,114560.0,114550.0,1.8948113]
[1757613125637,0.81702466,114560.0,114550.0,1.8948113]
[1757613125938,0.79944,114560.0,114550.0,1.8948113]
[1757613126142,0.81735587,114560.0,114550.0,1.8948113]
[1757613126341,0.81735587,114560.0,114550.0,1.72197698]
[1757613126640,0.81719884,114560.0,114550.0,1.72197698]
[1757613127442,0.81719884,114560.0,114550.0,1.8948113]
[1757613127633,0.79944,114560.0,114550.0,1.8948113]
[1757613127941,0.81721435,114560.0,114550.0,1.8948113]
[1757613128241,0.81721435,114560.0,114550.0,1.81652648]
[1757613128941,0.81739715,114560.0,114550.0,1.92611569]
[1757613129139,0.81739715,114560.0,114550.0,1.56531569]
[1757613129443,0.81739715,114560.0,114550.0,1.28289216]
[1757613130743,0.81706887,114560.0,114550.0,1.39248137]
[1757613132741,0.79944,114560.0,114550.0,0.96964705]
[1757613133048,0.98975367,114560.0,114550.0,1.03289216]
[1757613133246,1.35055367,114560.0,114550.0,1.11127807]
[1757613133546,1.35055367,114560.0,114550.0,1.03289216]
[1757613133747,1.33307432,114560.0,114550.0,0.62289216]
[1757613133944,1.35055367,114560.0,114550.0,0.70130535]
[1757613134141,0.55111367,114560.0,114550.0,0.70130535]
[1757613134447,0.81571935,114560.0,114550.0,1.06210535]
[1757613134751,0.81571935,114560.0,114550.0,0.98369216]
[1757613134938,0.79824,114560.0,114550.0,1.06212393]
[1757613135446,0.17283432,114570.0,114560.0,0.01357]
[1757613135646,0.97103432,114570.0,114560.0,0.20814432]
[1757613137348,0.97203432,114570.0,114560.0,0.20814432]
[1757613137546,0.97203432,114570.0,114560.0,0.47234432]
[1757613138148,0.97199432,114570.0,114560.0,0.47234432]
[1757613138643,0.17383432,114570.0,114560.0,0.47234432]
[1757613139038,0.79904,114570.0,114560.0,0.65401374]
[1757613139242,0.001,114570.0,114560.0,1.09324551]
[1757613139445,0.79928,114570.0,114560.0,1.01481374]
[1757613140250,0.79928,114570.0,114560.0,1.12440295]
[1757613141952,0.001,114570.0,114560.0,1.12440295]
[1757613142152,0.79908,114570.0,114560.0,1.12440295]
[1757613142453,0.001,114570.0,114560.0,1.00913987]
[1757613142653,0.79896,114570.0,114560.0,0.97800764]
[1757613143546,0.79896,114570.0,114560.0,0.86280486]
[1757613144056,0.79896,114570.0,114560.0,0.49316976]
[1757613145655,0.79896,114570.0,114560.0,0.41471278]
[1757613146055,0.79896,114570.0,114560.0,0.52430199]
[1757613147356,0.79896,114570.0,114560.0,0.60272788]
[1757613147560,0.79896,114570.0,114560.0,0.49313867]
[1757613149958,0.79896,114570.0,114560.0,0.41471278]
[1757613150357,0.001,114570.0,114560.0,0.41471278]
[1757613150558,0.79836,114570.0,114560.0,0.41471278]
[1757613152259,0.79832,114570.0,114560.0,0.41471278]
[1757613152450,0.7982,114570.0,114560.0,0.52430199]
[1757613152651,0.001,114570.0,114560.0,0.52430199]
[1757613152854,0.79816,114570.0,114560.0,0.52430199]
[1757613153462,0.79816,114570.0,114560.0,0.63950477]
[1757613153754,0.001,114570.0,114560.0,0.75950477]
[1757613153960,0.001,114570.0,114560.0,1.86757077]
[1757613154157,0.06962568,114590.0,114560.0,1.60337077]
[1757613154356,1.7604,114600.0,114590.0,0.03564]
[1757613154564,2.57574283,114600.0,114590.0,0.15084278]
[1757613154856,2.93654283,114600.0,114590.0,0.17091493]
[1757613155554,3.00545765,114600.0,114590.0,0.15084278]
[1757613155751,3.00545765,114600.0,114590.0,0.17121204]
[1757613155953,3.00545765,114600.0,114590.0,0.15084278]
[1757613156354,3.00541765,114600.0,114590.0,0.15084278]
[1757613156556,2.57554283,114600.0,114590.0,0.15084278]
[1757613156755,2.57554283,114600.0,114590.0,0.17153498]
[1757613157062,2.57954283,114600.0,114590.0,0.17153498]
[1757613157358,2.57954283,114600.0,114590.0,0.18008355]
[1757613157556,2.57754283,114600.0,114590.0,0.25843061]
[1757613157750,2.57754283,114600.0,114590.0,0.25786187]
[1757613158652,2.57754283,114600.0,114590.0,0.61866187]
[1757613159261,2.57746283,114600.0,114590.0,0.61866187]
[1757613159461,2.57746283,114600.0,114590.0,0.61887104]
[1757613160265,2.57746283,114600.0,114590.0,0.25807104]
[1757613160561,2.57746283,114600.0,114590.0,0.52019135]
[1757613160751,2.57746283,114600.0,114590.0,0.54041903]
[1757613161366,2.57746283,114600.0,114590.0,0.53187046]
[1757613161659,2.57746283,114600.0,114590.0,0.51164278]
[1757613162570,2.57746283,114600.0,114590.0,0.53216256]
[1757613162954,2.57746283,114600.0,114590.0,0.15084278]
[1757613163563,2.57746283,114600.0,114590.0,0.15941403]
[1757613163864,2.57746283,114600.0,114590.0,0.1801383]
[1757613164056,2.57746283,114600.0,114590.0,0.17935344]
[1757613164256,2.57746283,114600.0,114590.0,0.2577005]
[1757613165466,2.57746283,114600.0,114590.0,0.2583193]
[1757613165765,2.57746283,114600.0,114590.0,0.24974805]
[1757613166466,2.57746283,114600.0,114590.0,0.24927934]
[1757613167464,2.57746283,114600.0,114590.0,0.25795528]
[1757613167961,2.57746283,114600.0,114590.0,0.24927934]
[1757613169464,2.57746283,114600.0,114590.0,0.17093228]
[1757613170771,2.57746283,114600.0,114590.0,0.17986707]
[1757613173274,2.57746283,114600.0,114590.0,0.25821413]
[1757613178163,2.57746283,114600.0,114590.0,0.24927934]
[1757613178972,2.57746283,114600.0,114590.0,0.25808764]
[1757613181378,2.57746283,114600.0,114590.0,0.24927934]
[1757613182070,2.57746283,114600.0,114590.0,0.25795423]
[1757613184187,2.57746283,114600.0,114590.0,0.61875423]
[1757613184481,2.57690283,114600.0,114590.0,0.54040717]
[1757613185274,2.57690283,114600.0,114590.0,0.61869098]
[1757613185476,2.57690283,114600.0,114590.0,0.13401331]
[1757613185677,2.57690283,114600.0,114590.0,0.24921609]
[1757613185882,2.69210561,114600.0,114590.0,0.24921609]
[1757613186982,2.57690283,114600.0,114590.0,0.24921609]
[1757613193885,0.81650283,114600.0,114590.0,0.24921609]
[1757613195292,0.81650283,114600.0,114590.0,0.3588053]
[1757613195589,0.81650283,114600.0,114590.0,0.28052149]
[1757613195791,1.29250561,114600.0,114590.0,0.16531871]
[1757613195986,1.29250561,114600.0,114590.0,0.28052149]
[1757613196382,1.29250561,114600.0,114590.0,0.17093228]
[1757613196582,1.29250561,114600.0,114590.0,0.0557295]
[1757613197099,0.49578561,114600.0,114590.0,0.0557295]
[1757613197286,1.29246561,114600.0,114590.0,0.0557295]
[1757613197692,1.17726283,114600.0,114590.0,0.0557295]
[1757613197895,1.17726283,114600.0,114590.0,0.17093228]
[1757613199187,1.17726283,114600.0,114590.0,0.28052149]
[1757613199392,1.29246561,114600.0,114590.0,0.28052149]
[1757613201290,1.65766839,114600.0,114590.0,0.16531871]
[1757613201486,1.54246561,114600.0,114590.0,0.14246871]
[1757613201686,1.54246561,114600.0,114590.0,0.0328795]
[1757613202194,1.54246561,114600.0,114590.0,0.0554195]
[1757613202601,1.54246561,114600.0,114590.0,0.05543014]
[1757613202890,1.54246561,114600.0,114590.0,0.05543358]
[1757613203095,0.74578561,114600.0,114590.0,0.05543358]
[1757613203393,1.54242561,114600.0,114590.0,0.05543358]
[1757613204304,0.8033443,114600.0,114590.0,0.22819505]
[1757613204486,1.42722283,114600.0,114590.0,0.22819505]
[1757613204686,1.5999843,114600.0,114590.0,0.22819505]
[1757613205192,0.8033443,114600.0,114590.0,0.30651833]
[1757613205492,1.5999843,114600.0,114590.0,0.30651833]
[1757613205894,0.8033443,114600.0,114590.0,0.30651833]
[1757613206087,1.5999843,114600.0,114590.0,0.22819505]
[1757613207197,0.8033443,114600.0,114590.0,0.22819505]
[1757613207398,1.42718283,114600.0,114590.0,0.30651192]
[1757613207695,1.5999443,114600.0,114590.0,0.30651192]
[1757613207896,0.81638283,114600.0,114590.0,0.47927339]
[1757613208292,0.81638283,114600.0,114590.0,0.53095652]
[1757613208491,0.81638283,114600.0,114590.0,0.64054573]
[1757613208691,0.01978283,114600.0,114590.0,1.07054573]
[1757613208893,0.81638283,114600.0,114590.0,0.63054573]
[1757613209200,0.01978283,114600.0,114590.0,0.51054573]
[1757613209399,0.81638283,114600.0,114590.0,0.51054573]
[1757613210195,0.81608068,114600.0,114590.0,0.51054573]
[1757613210584,0.01948068,114600.0,114590.0,0.51054573]
[1757613210789,0.81608068,114600.0,114590.0,0.51054573]
[1757613210997,0.7986,114600.0,114590.0,0.51054573]
[1757613211186,0.81654707,114600.0,114590.0,0.51054573]
[1757613212799,0.81654707,114600.0,114590.0,0.33778426]
[1757613213496,0.81654707,114600.0,114590.0,0.51054573]
[1757613214701,0.01994707,114600.0,114590.0,0.51054573]
[1757613215000,0.81654707,114600.0,114590.0,0.51054573]
[1757613216003,0.81654707,114600.0,114590.0,0.33778426]
[1757613227312,0.002,114600.0,114590.0,1.79692595]
[1757613227617,0.3608,114630.0,114620.0,0.03643]
[1757613227808,0.98524,114630.0,114620.0,0.11472081]
[1757613228008,0.98524,114630.0,114620.0,0.28748228]
[1757613228620,1.15800147,114630.0,114620.0,0.46024375]
[1757613228916,1.22887949,114630.0,114620.0,0.46024375]
[1757613229417,1.05811802,114630.0,114620.0,0.46024375]
[1757613229610,1.23087949,114630.0,114620.0,0.46024375]
[1757613230210,1.23187949,114630.0,114620.0,0.46024375]
[1757613230517,1.23187949,114630.0,114620.0,0.38195294]
[1757613231018,1.23087949,114630.0,114620.0,0.39080445]
[1757613231320,1.23087949,114630.0,114620.0,0.38195294]
[1757613232215,1.23087949,114630.0,114620.0,0.20919147]
[1757613234319,1.23087949,114630.0,114620.0,0.21782857]
[1757613234520,1.23087949,114630.0,114620.0,0.20919147]
[1757613235622,0.87007949,114630.0,114620.0,0.20919147]
[1757613236523,1.23087949,114630.0,114620.0,0.20919147]
[1757613238216,0.43367802,114630.0,114620.0,0.20919147]
[1757613238415,1.40275949,114630.0,114620.0,0.218097]
[1757613238817,1.22999802,114630.0,114620.0,0.218097]
[1757613239020,0.3628,114630.0,114620.0,0.39085847]
[1757613239220,0.79828,114630.0,114620.0,0.39085847]
[1757613240521,1.33184147,114630.0,114620.0,0.20919147]
[1757613240722,1.33184147,114630.0,114620.0,0.03643]
[1757613241030,1.33184147,114630.0,114620.0,0.20919147]
[1757613242229,1.33184147,114630.0,114620.0,0.03643]
[1757613242529,1.33184147,114630.0,114620.0,0.20919147]
[1757613242738,1.15908,114630.0,114620.0,0.20919147]
[1757613242938,1.33184147,114630.0,114620.0,0.20919147]
[1757613243329,1.33184147,114630.0,114620.0,0.03643]
[1757613243528,1.33184147,114630.0,114620.0,0.20919147]
[1757613250132,1.33184147,114630.0,114620.0,0.47339147]
[1757613250333,1.33184147,114630.0,114620.0,0.30063]
[1757613250533,1.33184147,114630.0,114620.0,0.47339147]
[1757613253642,0.53556147,114630.0,114620.0,0.47339147]
[1757613253843,1.15892,114630.0,114620.0,0.47339147]
[1757613254047,0.53556147,114630.0,114620.0,0.47339147]
[1757613254343,1.33164147,114630.0,114620.0,0.47339147]
[1757613255339,0.53556147,114630.0,114620.0,0.47339147]
[1757613255638,1.33164147,114630.0,114620.0,0.47339147]
[1757613256843,1.33164147,114630.0,114620.0,0.30063]
[1757613257046,1.33164147,114630.0,114620.0,0.47339147]
[1757613257244,1.33164147,114630.0,114620.0,0.55168228]
[1757613260541,1.15888,114630.0,114620.0,0.55168228]
[1757613260747,1.33164147,114630.0,114620.0,0.47339147]
[1757613261156,1.33164147,114630.0,114620.0,0.30063]
[1757613261355,1.33164147,114630.0,114620.0,0.47339147]
[1757613261736,1.33164147,114630.0,114620.0,0.55168228]
[1757613262644,1.33160147,114630.0,114620.0,0.55168228]
[1757613265551,1.33160147,114630.0,114620.0,0.52914228]
[1757613266052,1.33160147,114630.0,114620.0,0.55016228]
[1757613266349,1.27395443,114630.0,114620.0,0.37740081]
[1757613267854,1.27395443,114630.0,114620.0,0.35638081]
[1757613268647,1.27387443,114630.0,114620.0,0.35638081]
[1757613269552,0.47791443,114630.0,114620.0,0.35638081]
[1757613269952,1.27387443,114630.0,114620.0,0.35638081]
[1757613270149,1.63898886,114630.0,114620.0,0.2642]
[1757613270654,3.39842886,114630.0,114620.0,0.2642]
[1757613273154,3.39842886,114630.0,114610.0,0.01389]
[1757613273361,1.38698886,114620.0,114610.0,0.01389]
[1757613275056,1.38798886,114620.0,114610.0,0.01389]
[1757613275658,1.38898886,114620.0,114610.0,0.01389]
[1757613278366,1.63898886,114620.0,114600.0,0.27809]
[1757613278566,0.47591443,114610.0,114600.0,0.27809]
[1757613278767,0.59102886,114610.0,114600.0,0.2642]
[1757613279265,1.38698886,114610.0,114600.0,0.2642]
[1757613279665,1.38698886,114610.0,114590.0,0.03289358]
[1757613279860,0.59102886,114600.0,114590.0,0.03289358]
[1757613281268,0.65971341,114600.0,114590.0,0.03389358]
[1757613282359,0.66837873,114600.0,114590.0,0.03489358]
[1757613283170,1.46433873,114600.0,114590.0,0.03489358]
[1757613284176,0.66837873,114600.0,114590.0,0.03489358]
[1757613284369,1.46437873,114600.0,114590.0,0.03489358]
[1757613287570,1.46437873,114600.0,114590.0,0.05591358]
[1757613288377,0.66837873,114600.0,114590.0,0.05591358]
[1757613288677,1.46437873,114600.0,114590.0,0.03489358]
[1757613290573,0.42948455,114600.0,114590.0,0.05591358]
[1757613290880,0.54459898,114600.0,114590.0,0.05591358]
[1757613291079,1.34059898,114600.0,114590.0,0.05591358]
[1757613291681,1.22548455,114600.0,114590.0,0.05591358]
[1757613291877,1.34059898,114600.0,114590.0,0.05591358]
[1757613292683,0.54459898,114600.0,114590.0,0.05591358]
[1757613292980,1.34055898,114600.0,114590.0,0.05591358]
[1757613294185,1.70567341,114600.0,114590.0,0.002]
[1757613294577,0.90971341,114600.0,114590.0,0.002]
[1757613294775,1.70567341,114600.0,114590.0,0.002]
[1757613297683,1.82078784,114600.0,114590.0,0.002]
[1757613298190,1.70567341,114600.0,114590.0,0.002]
[1757613298889,1.70567341,114600.0,114590.0,0.001]
[1757613299588,1.70567341,114600.0,114570.0,0.27741]
[1757613299888,0.47591443,114580.0,114570.0,0.30022]
[1757613300191,1.27187443,114580.0,114570.0,0.30022]
[1757613300381,1.27187443,114580.0,114570.0,0.37851081]
[1757613301191,1.27187443,114580.0,114570.0,0.38051081]
[1757613301393,1.27187443,114580.0,114570.0,0.30222]
[1757613302188,1.27187443,114580.0,114570.0,0.27941]
[1757613302589,1.27187443,114580.0,114570.0,0.28041]
[1757613302897,1.27187443,114580.0,114570.0,0.30322]
[1757613306994,0.47591443,114580.0,114570.0,0.30322]
[1757613307197,1.27187443,114580.0,114570.0,0.41833443]
[1757613307891,0.3608,114580.0,114570.0,0.41833443]
[1757613308087,1.15676,114580.0,114570.0,0.41833443]
[1757613308397,1.15676,114580.0,114570.0,0.49662524]
[1757613309098,1.27187443,114580.0,114570.0,0.49662524]
[1757613309696,1.15676,114580.0,114570.0,0.49662524]
[1757613309890,1.27187443,114580.0,114570.0,0.41833443]
[1757613310900,0.3608,114590.0,114580.0,0.0365]
[1757613311200,1.15676,114590.0,114580.0,0.26672886]
[1757613311588,1.15676,114590.0,114580.0,0.15161443]
[1757613311988,1.15676,114590.0,114580.0,0.15261443]
[1757613312191,1.15676,114590.0,114580.0,0.53783845]